bitfinex/quotes_BTCUSD_20250508
["timestamp","ask_amount","ask_price","bid_price","bid_amount"]
[1746693089877,0.22545174,99503.0,99502.0,0.04420206]
[1746693090570,0.22545174,99503.0,99502.0,0.02810206]
[1746693095279,0.20100681,99500.0,99494.0,0.20101553]
[1746693095472,0.20100681,99500.0,99495.0,6.230906]
[1746693095636,0.20100681,99500.0,99496.0,5.761679]
[1746693095844,0.20100681,99500.0,99497.0,2.349591]
[1746693096044,0.02445278,99503.0,99500.0,0.01005025]
[1746693096286,0.00145278,99503.0,99502.0,0.0327]
[1746693096441,0.00045278,99503.0,99502.0,0.0327]
[1746693097141,0.00045278,99503.0,99502.0,5.0827]
[1746693097344,0.00145278,99503.0,99502.0,5.0827]
[1746693097785,0.00045278,99503.0,99502.0,5.0827]
[1746693098193,0.0161,99538.0,99516.0,0.01004863]
[1746693098389,0.01004732,99529.0,99528.0,0.23677036]
[1746693098638,0.01004792,99523.0,99520.0,0.23677036]
[1746693098812,0.01004792,99523.0,99520.0,0.0164]
[1746693099008,0.01004802,99522.0,99519.0,0.20096625]
[1746693099209,0.21100861,99522.0,99521.0,0.0164]
[1746693099838,0.01004802,99522.0,99521.0,0.0164]
[1746693100421,0.01104802,99522.0,99521.0,0.0164]
[1746693101909,0.01004813,99521.0,99518.0,0.02544843]
[1746693102104,0.01004813,99521.0,99519.0,5.05]
[1746693102519,0.21101135,99521.0,99519.0,1.2544]
[1746693102719,0.21101135,99521.0,99519.0,1.0892]
[1746693102938,0.20096866,99518.0,99517.0,1.1539]
[1746693103133,0.20096866,99518.0,99513.0,0.25217036]
[1746693103134,0.01004853,99517.0,99514.0,6.261294]
[1746693103312,0.01004853,99517.0,99514.0,0.0154]
[1746693103519,0.001,99521.0,99519.0,0.20096664]
[1746693103739,0.001,99521.0,99520.0,5.08350934]
[1746693104047,0.001,99521.0,99520.0,5.0654]
[1746693104185,0.01004772,99525.0,99521.0,0.20096261]
[1746693104539,0.00908906,99524.0,99520.0,0.0154]
[1746693105049,0.012,99521.0,99520.0,0.0154]
[1746693105253,0.012,99521.0,99520.0,5.0654]
[1746693105415,0.00908906,99524.0,99520.0,5.0654]
[1746693105617,0.00908906,99524.0,99520.0,0.0154]
[1746693105823,0.02108906,99524.0,99520.0,0.0164]
[1746693106023,0.02208906,99524.0,99520.0,0.0164]
[1746693106721,0.02208906,99524.0,99520.0,0.4164]
[1746693106910,0.01004792,99523.0,99520.0,0.401]
[1746693107362,0.01004792,99523.0,99520.0,0.001]
[1746693107566,0.01004792,99523.0,99521.0,0.01873056]
[1746693107766,0.01004792,99523.0,99522.0,0.01873056]
[1746693108693,0.01004792,99523.0,99522.0,0.02809469]
[1746693108920,0.15621484,99523.0,99522.0,0.02809469]
[1746693109052,0.2009727,99516.0,99515.0,0.15586505]
[1746693109256,0.01004924,99510.0,99506.0,0.23878008]
[1746693109455,0.01004924,99510.0,99506.0,5.29798565]
[1746693109653,0.01004914,99511.0,99507.0,5.204306]
[1746693109861,0.01004893,99513.0,99508.0,0.20098886]
[1746693110088,0.01004903,99512.0,99509.0,4.532391]
[1746693110299,0.01004903,99512.0,99509.0,4.468791]
[1746693110467,0.001,99510.0,99509.0,4.484881]
[1746693110673,0.001,99510.0,99509.0,4.468791]
[1746693111222,0.001,99510.0,99509.0,4.261791]
[1746693111432,0.013,99510.0,99509.0,4.261791]
[1746693111788,0.01004893,99513.0,99510.0,0.20098482]
[1746693111989,0.01004782,99524.0,99514.0,0.20097674]
[1746693112210,0.20095251,99526.0,99516.0,0.01004863]
[1746693112430,0.01004782,99524.0,99519.0,0.21101486]
[1746693112678,0.01004772,99525.0,99519.0,0.21101486]
[1746693112679,0.01004792,99523.0,99519.0,0.20096653]
[1746693113261,0.01004772,99525.0,99521.0,0.21636219]
[1746693113636,0.01004782,99524.0,99521.0,0.21636219]
[1746693113841,0.01004782,99524.0,99521.0,0.0154]
[1746693114437,0.01004782,99524.0,99519.0,0.60096653]
[1746693114642,0.02304782,99524.0,99519.0,0.4171]
[1746693114979,0.01004802,99522.0,99519.0,0.4161]
[1746693115353,0.01004802,99522.0,99521.0,0.001]
[1746693115736,0.20096261,99521.0,99519.0,0.4]
[1746693116904,0.20096261,99521.0,99519.0,0.401]
[1746693118011,0.21716261,99521.0,99519.0,0.001]
[1746693118212,0.0317,99520.0,99519.0,0.001]
[1746693118437,0.01004883,99514.0,99511.0,0.23677036]
[1746693118636,0.01004883,99514.0,99512.0,1.211546]
[1746693118842,0.01004883,99514.0,99513.0,0.811546]
[1746693119468,0.01004883,99514.0,99513.0,0.779366]
[1746693119767,0.01004883,99514.0,99513.0,0.742158]
[1746693120406,0.02304883,99514.0,99513.0,0.692876]
[1746693120531,0.02404883,99514.0,99513.0,0.692876]
[1746693121696,0.02304883,99514.0,99513.0,0.71161294]
[1746693122052,0.01104883,99514.0,99513.0,1.11061294]
[1746693122246,0.001,99514.0,99513.0,6.53181294]
[1746693122452,0.014,99514.0,99513.0,8.47970494]
[1746693122864,0.014,99514.0,99513.0,8.060968]
[1746693123064,0.001,99514.0,99513.0,8.059968]
[1746693123464,0.014,99514.0,99513.0,8.060968]
[1746693123700,0.014,99514.0,99513.0,8.460968]
[1746693129115,0.001,99514.0,99513.0,8.459968]
[1746693129322,0.01004712,99531.0,99527.0,0.01004752]
[1746693129526,0.01004691,99533.0,99528.0,0.01004742]
[1746693129999,0.01004691,99533.0,99529.0,0.20094645]
[1746693131338,0.01004661,99536.0,99531.0,0.20094067]
[1746693131739,0.001,99533.0,99529.0,0.21099377]
[1746693131936,0.01004681,99534.0,99529.0,0.21099377]
[1746693132141,0.0100458,99544.0,99539.0,0.20092539]
[1746693132346,0.01004601,99542.0,99539.0,0.01111326]
[1746693132546,0.01004641,99538.0,99534.0,0.43770672]
[1746693132813,0.01004641,99538.0,99535.0,0.7631]
[1746693133193,0.01004641,99538.0,99536.0,0.7502]
[1746693133395,0.01004641,99538.0,99536.0,4.523e-05]
[1746693133593,0.01004641,99538.0,99537.0,0.4606]
[1746693133798,0.01004641,99538.0,99537.0,0.1424]
[1746693134831,0.02204641,99538.0,99537.0,0.1424]
[1746693135232,0.012,99538.0,99537.0,0.1424]
[1746693135404,0.012,99538.0,99537.0,0.1611346]
[1746693135724,0.014,99538.0,99537.0,0.1621346]
[1746693135901,0.0174,99538.0,99537.0,0.0197346]
[1746693136228,0.014,99538.0,99537.0,0.0207346]
[1746693136843,0.014,99538.0,99537.0,9.5788907]
[1746693137050,0.014,99538.0,99537.0,9.5929816]
[1746693137281,0.014,99538.0,99537.0,9.41456917]
[1746693137415,0.014,99538.0,99537.0,9.41457]
[1746693137623,0.002,99538.0,99537.0,9.41457]
[1746693138179,0.012,99538.0,99537.0,9.41557]
[1746693138375,0.013,99538.0,99537.0,9.41657]
[1746693139151,0.013,99538.0,99537.0,8.684647]
[1746693140143,0.013,99538.0,99537.0,9.084647]
[1746693141219,0.013,99538.0,99537.0,9.100447]
[1746693141668,0.013,99538.0,99537.0,9.10980247]
[1746693141862,0.013,99538.0,99537.0,9.09400247]
[1746693142117,0.001,99538.0,99537.0,9.09300247]
[1746693142320,0.0100455,99547.0,99542.0,0.01004601]
[1746693142462,0.0100449,99553.0,99545.0,0.0100457]
[1746693142881,0.0100449,99553.0,99544.0,0.20091617]
[1746693142882,0.0100454,99548.0,99544.0,0.20091617]
[1746693143078,0.0100454,99548.0,99543.0,0.0100459]
[1746693143280,0.0100452,99550.0,99545.0,0.0100457]
[1746693143821,0.0100454,99548.0,99544.0,0.20621689]
[1746693144571,0.0100454,99548.0,99545.0,0.001]
[1746693144944,0.0100453,99549.0,99544.0,0.0100458]
[1746693145152,0.002,99548.0,99545.0,0.20091415]
[1746693145306,0.014,99548.0,99545.0,0.21095985]
[1746693145509,0.012,99548.0,99545.0,0.21095985]
[1746693145719,0.014,99548.0,99545.0,0.21195985]
[1746693145921,0.014,99548.0,99547.0,0.20091012]
[1746693146935,0.002,99548.0,99547.0,0.20091012]
[1746693147387,0.011,99549.0,99547.0,0.20091012]
[1746693147510,0.0210453,99549.0,99545.0,0.21095985]
[1746693147706,0.0120454,99548.0,99547.0,0.001]
[1746693147952,0.002,99548.0,99547.0,0.001]
[1746693148163,0.013,99548.0,99547.0,0.002]
[1746693149685,0.0283,99548.0,99547.0,0.002]
[1746693149927,0.0283,99548.0,99547.0,0.02070058]
[1746693151777,0.14486692,99548.0,99547.0,0.02070058]
[1746693153025,0.14486692,99548.0,99547.0,0.002]
[1746693155513,0.14486692,99548.0,99547.0,0.02071874]
[1746693156340,0.14486692,99548.0,99547.0,0.002]
[1746693176716,0.14486692,99548.0,99547.0,0.02073169]
[1746693179639,0.14486692,99548.0,99530.0,0.11660723]
[1746693179640,0.20094241,99531.0,99530.0,0.11660723]
[1746693179930,0.21098953,99531.0,99530.0,0.01564524]
[1746693180335,0.21098953,99531.0,99530.0,0.02501755]
[1746693180536,0.21098953,99531.0,99530.0,0.43589568]
[1746693180940,0.21198953,99531.0,99530.0,0.43689568]
[1746693182755,0.22298953,99531.0,99530.0,0.43789568]
[1746693183521,0.012,99531.0,99530.0,0.43789568]
[1746693184610,0.21294241,99531.0,99530.0,0.43789568]
[1746693185214,0.21294241,99531.0,99530.0,0.01292337]
[1746693187156,0.21294241,99531.0,99530.0,0.00204524]
[1746693191762,0.21294241,99531.0,99530.0,0.02081126]
[1746693198944,0.21294241,99531.0,99530.0,0.42081126]
[1746693201598,0.21294241,99531.0,99530.0,0.4208081]
[1746693201929,0.21294241,99531.0,99530.0,0.0208081]
[1746693202455,0.21294241,99531.0,99530.0,0.4208081]
[1746693205495,0.21294241,99531.0,99530.0,0.0208081]
[1746693205816,0.21294241,99531.0,99530.0,0.4208081]
[1746693206484,0.21294241,99531.0,99530.0,0.0208081]
[1746693207235,0.21294241,99531.0,99530.0,0.00204524]
[1746693208046,0.22794241,99531.0,99530.0,0.00204524]
[1746693210955,0.21294241,99531.0,99530.0,0.00204524]
[1746693212635,0.22894241,99531.0,99530.0,0.00204524]
[1746693215389,0.21294241,99531.0,99530.0,0.00204524]
[1746693216517,0.22924241,99531.0,99530.0,0.00204524]
[1746693216722,0.39143694,99531.0,99530.0,0.00204524]
[1746693216878,0.34490933,99531.0,99530.0,0.00204524]
[1746693217676,0.33390933,99531.0,99530.0,0.00104524]
[1746693218118,0.34790933,99531.0,99530.0,0.00204524]
[1746693218318,0.34690933,99531.0,99530.0,0.00104524]
[1746693218578,0.34890933,99531.0,99530.0,0.00104524]
[1746693220987,0.29890933,99531.0,99530.0,0.00104524]
[1746693222887,0.26760933,99531.0,99530.0,0.00104524]
[1746693223089,0.016,99531.0,99530.0,9.42679224]
[1746693223292,0.20088223,99561.0,99556.0,0.20089196]
[1746693223605,0.01004379,99564.0,99560.0,0.01004419]
[1746693223754,0.01004379,99564.0,99557.0,5.10526542]
[1746693223755,0.21092072,99564.0,99562.0,0.0162]
[1746693223952,0.01004419,99560.0,99557.0,0.4162]
[1746693224156,0.01004419,99560.0,99558.0,0.0162]
[1746693224753,0.01004419,99560.0,99559.0,0.4]
[1746693225101,0.01004389,99563.0,99559.0,0.415]
[1746693225252,0.01004399,99562.0,99559.0,0.41504524]
[1746693226080,0.002,99560.0,99559.0,0.41504524]
[1746693226307,0.21092451,99562.0,99559.0,0.41504524]
[1746693226510,0.005,99560.0,99559.0,0.41504524]
[1746693227035,0.21092451,99562.0,99559.0,0.40004524]
[1746693227254,0.006,99560.0,99559.0,0.40004524]
[1746693227688,0.006,99560.0,99559.0,0.40104524]
[1746693228141,0.21192451,99562.0,99559.0,0.40104524]
[1746693228373,0.21192451,99562.0,99559.0,0.40004524]
[1746693228374,0.21692451,99562.0,99559.0,0.40004524]
[1746693228795,0.001,99560.0,99559.0,0.40104524]
[1746693229023,0.001,99560.0,99559.0,0.40004524]
[1746693229360,0.20188388,99560.0,99559.0,0.40104524]
[1746693230441,0.20288388,99560.0,99559.0,0.40104524]
[1746693230637,0.20188388,99560.0,99559.0,0.40004524]
[1746693231600,0.20288388,99560.0,99559.0,0.40104524]
[1746693232369,0.20288388,99560.0,99559.0,0.00104524]
[1746693234142,0.20288388,99560.0,99557.0,0.01897706]
[1746693234352,0.20088792,99558.0,99557.0,4.527e-05]
[1746693234556,0.20088792,99558.0,99557.0,1.71134527]
[1746693235161,0.20088792,99558.0,99557.0,2.06571179]
[1746693235745,0.20188792,99558.0,99557.0,2.06671179]
[1746693236756,0.20188792,99558.0,99557.0,2.08211179]
[1746693237894,0.20688792,99558.0,99557.0,2.08211179]
[1746693238225,0.20688792,99558.0,99557.0,0.93471179]
[1746693238433,0.20688792,99558.0,99557.0,0.85336317]
[1746693238578,0.20688792,99558.0,99557.0,0.82826317]
[1746693238948,0.20688792,99558.0,99557.0,0.80961179]
[1746693241537,0.20688792,99558.0,99557.0,0.79821179]
[1746693242671,0.20688792,99558.0,99557.0,0.57931179]
[1746693243805,0.20688792,99558.0,99557.0,0.42021179]
[1746693249490,0.20688792,99558.0,99557.0,0.43886521]
[1746693252557,0.20688792,99558.0,99557.0,0.01965342]
[1746693253626,0.20688792,99558.0,99557.0,0.41965342]
[1746693253802,0.20688792,99558.0,99557.0,0.43867688]
[1746693256635,0.20688792,99558.0,99557.0,0.03867688]
[1746693257061,0.20688792,99558.0,99557.0,0.40767688]
[1746693257258,0.20688792,99558.0,99557.0,0.4]
[1746693258500,0.20688792,99558.0,99557.0,0.41887266]
[1746693260131,0.20688792,99558.0,99557.0,0.01887266]
[1746693260542,0.20089196,99556.0,99555.0,1.0163]
[1746693260746,0.20089196,99556.0,99555.0,1.01634528]
[1746693261162,0.20089196,99556.0,99555.0,1.41634528]
[1746693262243,0.20589196,99556.0,99555.0,1.43610725]
[1746693262491,0.20589196,99556.0,99555.0,1.41980725]
[1746693263001,0.20689196,99556.0,99555.0,1.42080725]
[1746693269176,0.006,99556.0,99555.0,1.62170122]
[1746693269424,0.006,99556.0,99555.0,1.43955747]
[1746693273147,0.021,99556.0,99555.0,1.43955747]
[1746693273921,0.021,99556.0,99555.0,1.27627588]
[1746693274565,0.006,99556.0,99555.0,1.27627588]
[1746693275000,0.006,99556.0,99555.0,1.29127588]
[1746693275320,0.006,99556.0,99555.0,5.66759788]
[1746693275539,0.006,99556.0,99555.0,4.78301388]
[1746693276486,0.006,99556.0,99555.0,4.76731388]
[1746693277431,0.006,99556.0,99555.0,4.74856366]
[1746693277631,0.006,99556.0,99555.0,1.29127296]
[1746693277828,0.006,99556.0,99555.0,10.34920596]
[1746693278061,0.006,99556.0,99555.0,10.36460596]
[1746693278794,0.005,99556.0,99555.0,10.36360596]
[1746693279216,0.006,99556.0,99555.0,10.36460596]
[1746693279635,0.001,99556.0,99555.0,10.36460596]
[1746693279935,0.005,99556.0,99555.0,10.36460596]
[1746693281444,0.005,99556.0,99555.0,10.30782096]
[1746693282566,0.005,99556.0,99555.0,10.29776896]
[1746693283078,0.005,99556.0,99555.0,9.93188996]
[1746693283831,0.005,99556.0,99555.0,9.85649896]
[1746693284086,0.005,99556.0,99555.0,8.68868596]
[1746693285626,0.005,99556.0,99555.0,8.70468596]
[1746693288201,0.005,99556.0,99555.0,8.72058596]
[1746693288900,0.004,99556.0,99555.0,8.71958596]
[1746693289108,0.01004308,99571.0,99567.0,0.01004348]
[1746693289317,0.01004338,99568.0,99564.0,0.20087439]
[1746693289664,0.01004338,99568.0,99564.0,0.61091818]
[1746693289916,0.01004338,99568.0,99565.0,0.0187251]
[1746693290310,0.01004338,99568.0,99564.0,0.4]
[1746693290311,0.01004338,99568.0,99567.0,0.001]
[1746693290670,0.01004338,99568.0,99567.0,0.0187251]
[1746693291943,0.01204338,99568.0,99567.0,0.0187251]
[1746693292518,0.01704338,99568.0,99567.0,0.0187251]
[1746693292746,0.01904338,99568.0,99567.0,0.0197251]
[1746693298813,0.03414338,99568.0,99567.0,0.0197251]
[1746693300000,0.01904338,99568.0,99567.0,0.0197251]
[1746693301769,0.03414338,99568.0,99567.0,0.0197251]
[1746693302371,0.04944338,99568.0,99567.0,0.0197251]
[1746693304186,0.03414338,99568.0,99567.0,0.0197251]
[1746693306615,0.04974338,99568.0,99567.0,0.0197251]
[1746693307346,0.03414338,99568.0,99567.0,0.0197251]
[1746693310836,0.01004389,99563.0,99558.0,0.24325885]
[1746693311032,0.20088187,99561.0,99559.0,6.92895162]
[1746693311234,0.01004409,99561.0,99560.0,5.274501]
[1746693311547,0.21092712,99561.0,99558.0,5.680027]
[1746693311772,0.01004409,99561.0,99559.0,5.774446]
[1746693311958,0.01004409,99561.0,99559.0,0.4]
[1746693312157,0.01004409,99561.0,99560.0,5.371243]
[1746693312540,0.01004409,99561.0,99560.0,5.350643]
[1746693313092,0.01104409,99561.0,99560.0,5.294543]
[1746693313454,0.01504409,99561.0,99560.0,5.294543]
[1746693313640,0.005,99561.0,99560.0,5.294543]
[1746693314235,0.005,99561.0,99560.0,4.930043]
[1746693314593,0.005,99561.0,99560.0,4.901943]
[1746693314970,0.001,99561.0,99560.0,4.901943]
[1746693315176,0.20188187,99561.0,99560.0,4.097643]
[1746693315374,0.20588187,99561.0,99560.0,4.497643]
[1746693315571,0.20588187,99561.0,99560.0,4.400443]
[1746693315775,0.20588187,99561.0,99560.0,4.355443]
[1746693316388,0.20588187,99561.0,99560.0,4.14957]
[1746693318910,0.20588187,99561.0,99560.0,4.13377]
[1746693319106,0.20588187,99561.0,99560.0,3.841272]
[1746693319326,0.22228187,99561.0,99560.0,3.841272]
[1746693319611,0.22228187,99561.0,99560.0,3.749772]
[1746693320062,0.22228187,99561.0,99560.0,3.733772]
[1746693320267,0.22228187,99561.0,99560.0,3.101372]
[1746693320425,0.22228187,99561.0,99560.0,3.085772]
[1746693320591,0.22228187,99561.0,99560.0,3.036874]
[1746693320806,0.22228187,99561.0,99560.0,3.013574]
[1746693321461,0.22228187,99561.0,99560.0,2.922774]
[1746693321622,0.22228187,99561.0,99560.0,2.875174]
[1746693322074,0.22228187,99561.0,99560.0,2.820574]
[1746693322242,0.22228187,99561.0,99560.0,0.401]
[1746693322578,0.22228187,99561.0,99560.0,2.764453]
[1746693322732,0.22228187,99561.0,99560.0,2.763653]
[1746693323150,0.22228187,99561.0,99560.0,2.749653]
[1746693323551,0.22228187,99561.0,99560.0,2.577153]
[1746693324386,0.22228187,99561.0,99560.0,2.531921]
[1746693324680,0.22228187,99561.0,99560.0,2.658721]
[1746693325384,0.22228187,99561.0,99560.0,2.630577]
[1746693325677,0.22228187,99561.0,99560.0,2.620177]
[1746693326183,0.20588187,99561.0,99560.0,2.503777]
[1746693326568,0.20588187,99561.0,99560.0,2.52251197]
[1746693327389,0.20588187,99561.0,99560.0,2.48934197]
[1746693328507,0.20588187,99561.0,99560.0,2.39586297]
[1746693328717,0.22228187,99561.0,99560.0,0.01973497]
[1746693329001,0.23888187,99561.0,99560.0,0.01973497]
[1746693330936,0.20588187,99561.0,99560.0,0.01973497]
[1746693331496,0.20588187,99561.0,99560.0,0.03853399]
[1746693332454,0.22138187,99561.0,99560.0,0.03853399]
[1746693333419,0.20588187,99561.0,99560.0,0.03853399]
[1746693333649,0.005,99561.0,99560.0,0.03853399]
[1746693333848,0.005,99561.0,99560.0,5.90286487]
[1746693334147,0.005,99561.0,99560.0,9.35775187]
[1746693334311,0.005,99561.0,99560.0,9.30950287]
[1746693336025,0.005,99561.0,99560.0,9.3068679]
[1746693336239,0.005,99561.0,99560.0,9.72559627]
[1746693338431,0.005,99561.0,99560.0,9.70949627]
[1746693339353,0.005,99561.0,99560.0,0.65471127]
[1746693339540,0.005,99561.0,99560.0,9.89030427]
[1746693339718,0.005,99561.0,99560.0,9.86919627]
[1746693341451,0.005,99561.0,99560.0,9.88539627]
[1746693341958,0.005,99561.0,99560.0,9.83011227]
[1746693342140,0.005,99561.0,99560.0,9.78877927]
[1746693345013,0.005,99561.0,99560.0,9.80507927]
[1746693346552,0.005,99561.0,99560.0,9.78877927]
[1746693346959,0.005,99561.0,99560.0,8.88981727]
[1746693347104,0.005,99561.0,99560.0,6.10007139]
[1746693347310,0.005,99561.0,99560.0,6.30095527]
[1746693347547,0.005,99561.0,99560.0,5.98305527]
[1746693348676,0.005,99561.0,99560.0,5.78217139]
[1746693349209,0.005,99561.0,99560.0,5.98305527]
[1746693349601,0.005,99561.0,99560.0,5.97805527]
[1746693349796,0.005,99561.0,99560.0,5.9819761]
[1746693350176,0.005,99561.0,99560.0,0.6383321]
[1746693350391,0.005,99561.0,99560.0,8.8635441]
[1746693350613,0.005,99561.0,99560.0,9.5098301]
[1746693351224,0.005,99561.0,99560.0,9.4756571]
[1746693351618,0.005,99561.0,99560.0,9.4525401]
[1746693354964,0.0166,99575.0,99561.0,0.01004409]
[1746693354965,0.18686755,99569.0,99561.0,0.01004409]
[1746693355189,0.18686755,99569.0,99562.0,0.21960748]
[1746693355390,0.01004348,99567.0,99563.0,8.636293]
[1746693355558,0.01004338,99568.0,99564.0,0.41872837]
[1746693355898,0.01004338,99568.0,99565.0,8.13120337]
[1746693356114,0.01004338,99568.0,99566.0,3.219291]
[1746693356338,0.01004338,99568.0,99567.0,0.01872837]
[1746693356535,0.01004338,99568.0,99567.0,3.66010674]
[1746693356738,0.01004338,99568.0,99567.0,3.63698974]
[1746693357079,0.01504338,99568.0,99567.0,3.63698974]
[1746693357843,0.01504338,99568.0,99567.0,3.27013474]
[1746693358183,0.01504338,99568.0,99567.0,3.25103774]
[1746693358386,0.01304338,99568.0,99567.0,3.25203774]
[1746693358854,0.01504338,99568.0,99567.0,3.25203774]
[1746693359233,0.01504338,99568.0,99567.0,3.24198674]
[1746693359436,0.01504338,99568.0,99567.0,3.19675774]
[1746693360394,0.01504338,99568.0,99567.0,3.17163074]
[1746693360935,0.01504338,99568.0,99567.0,0.43779574]
[1746693361184,0.01504338,99568.0,99567.0,3.16962074]
[1746693361353,0.01504338,99568.0,99567.0,3.16861574]
[1746693361576,0.01504338,99568.0,99567.0,3.14549874]
[1746693363164,0.005,99568.0,99567.0,3.14549874]
[1746693365200,0.005,99568.0,99567.0,3.11936574]
[1746693366611,0.005,99568.0,99567.0,2.69119974]
[1746693367384,0.005,99568.0,99567.0,2.63189974]
[1746693367921,0.0204,99568.0,99567.0,2.63189974]
[1746693368080,0.005,99568.0,99567.0,2.59571674]
[1746693370738,0.005,99568.0,99567.0,2.57259974]
[1746693374933,0.005,99568.0,99567.0,0.43779574]
[1746693375743,0.005,99568.0,99567.0,3.09725474]
[1746693375948,0.005,99568.0,99567.0,3.62994974]
[1746693376099,0.005,99568.0,99567.0,3.193154]
[1746693376300,0.005,99568.0,99567.0,3.20796863]
[1746693376877,0.005,99568.0,99567.0,3.00393563]
[1746693377047,0.005,99568.0,99567.0,2.46923063]
[1746693377224,0.005,99568.0,99567.0,2.86923063]
[1746693378433,0.005,99568.0,99567.0,2.65743517]
[1746693378649,0.005,99568.0,99567.0,2.48726277]
[1746693378957,0.005,99568.0,99567.0,2.66273874]
[1746693379164,0.005,99568.0,99567.0,2.51298174]
[1746693379514,0.005,99568.0,99567.0,2.48081874]
[1746693385803,0.005,99568.0,99567.0,0.41234974]
[1746693386018,0.005,99568.0,99567.0,3.83969274]
[1746693386852,0.005,99568.0,99567.0,3.82361174]
[1746693388086,0.005,99568.0,99567.0,3.80451474]
[1746693388307,0.005,99568.0,99567.0,3.72008774]
[1746693389315,0.005,99568.0,99567.0,3.49494874]
[1746693389921,0.20586774,99568.0,99567.0,3.49494874]
[1746693390172,0.005,99568.0,99567.0,3.19040774]
[1746693390892,0.005,99568.0,99567.0,3.3912775]
[1746693391781,0.005,99568.0,99567.0,3.19040774]
[1746693391986,0.005,99568.0,99567.0,3.3912775]
[1746693392187,0.005,99568.0,99567.0,3.1997853]
[1746693392392,0.005,99568.0,99567.0,8.1074083]
[1746693392558,0.005,99568.0,99567.0,8.6863393]
[1746693392764,0.005,99568.0,99567.0,8.5112293]
[1746693393426,0.005,99568.0,99567.0,8.50185174]
[1746693396558,0.005,99568.0,99567.0,0.41234974]
[1746693396760,0.005,99568.0,99567.0,8.67171074]
[1746693396958,0.005,99568.0,99567.0,5.30467274]
[1746693397158,0.005,99568.0,99567.0,8.67171074]
[1746693397358,0.005,99568.0,99567.0,0.41234974]
[1746693397562,0.005,99568.0,99567.0,8.67171074]
[1746693397744,0.005,99568.0,99567.0,8.67472674]
[1746693398891,0.01004308,99571.0,99569.0,0.83171841]
[1746693399367,0.01004308,99571.0,99570.0,0.02901602]
[1746693399766,0.01004298,99572.0,99570.0,0.02901602]
[1746693400180,0.003,99571.0,99570.0,0.01027076]
[1746693400380,0.01004298,99572.0,99570.0,0.01027076]
[1746693400797,0.01004298,99572.0,99571.0,0.4]
[1746693401158,0.01004298,99572.0,99571.0,0.4102743]
[1746693401357,0.01004298,99572.0,99571.0,0.42901932]
[1746693402176,0.01304298,99572.0,99571.0,0.02901932]
[1746693403194,0.01304298,99572.0,99571.0,0.42901932]
[1746693403401,0.01504298,99572.0,99571.0,0.42901932]
[1746693403958,0.01304298,99572.0,99571.0,0.42901932]
[1746693404160,0.01604298,99572.0,99571.0,0.43001932]
[1746693406233,0.01604298,99572.0,99571.0,0.03001932]
[1746693406672,0.01604298,99572.0,99571.0,0.43001932]
[1746693407277,0.01604298,99572.0,99571.0,0.03001932]
[1746693407691,0.04724298,99572.0,99571.0,0.03001932]
[1746693410009,0.1479099,99572.0,99571.0,0.03001932]
[1746693417888,0.006,99572.0,99571.0,0.03001932]
[1746693419264,0.20685967,99572.0,99571.0,0.03001932]
[1746693420990,0.006,99572.0,99571.0,0.03001932]
[1746693421575,0.006,99572.0,99571.0,0.04531932]
[1746693422788,0.006,99572.0,99571.0,0.03001932]
[1746693425254,0.006,99572.0,99571.0,0.04601932]
[1746693427185,0.006,99572.0,99571.0,4.14661732]
[1746693429193,0.006,99572.0,99571.0,4.54661732]
[1746693429391,0.006,99572.0,99571.0,4.26620832]
[1746693430369,0.006,99572.0,99571.0,3.25219632]
[1746693431291,0.006,99572.0,99571.0,0.43001932]
[1746693431594,0.006,99572.0,99571.0,3.72858932]
[1746693431819,0.006,99572.0,99571.0,3.46928732]
[1746693432934,0.006,99572.0,99571.0,3.45807868]
[1746693433090,0.006,99572.0,99571.0,3.46667499]
[1746693434889,0.006,99572.0,99571.0,0.44400699]
[1746693435215,0.006,99572.0,99571.0,8.63188499]
[1746693435416,0.006,99572.0,99571.0,8.73741499]
[1746693436433,0.006,99572.0,99571.0,8.69218699]
[1746693437222,0.006,99572.0,99571.0,8.71557468]
[1746693437423,0.006,99572.0,99571.0,8.68500468]
[1746693438031,0.006,99572.0,99571.0,8.70040468]
[1746693438564,0.006,99572.0,99571.0,8.68500468]
[1746693438994,0.006,99572.0,99571.0,8.63977668]
[1746693439344,0.006,99572.0,99571.0,8.59454968]
[1746693443190,0.006,99572.0,99571.0,8.57794968]
[1746693443980,0.006,99572.0,99571.0,8.38598568]
[1746693444190,0.006,99572.0,99571.0,8.26437568]
[1746693445782,0.006,99572.0,99571.0,7.74476568]
[1746693449506,0.006,99572.0,99571.0,7.8608326]
[1746693449706,0.006,99572.0,99571.0,7.8771326]
[1746693450411,0.006,99572.0,99571.0,7.77646568]
[1746693450692,0.006,99572.0,99571.0,7.76016568]
[1746693458026,0.006,99572.0,99571.0,2.86784268]
[1746693458323,0.006,99572.0,99571.0,0.64366868]
[1746693458526,0.006,99572.0,99571.0,8.95892768]
[1746693458745,0.006,99572.0,99571.0,8.97500668]
[1746693459247,0.006,99572.0,99571.0,8.95892768]
[1746693459454,0.006,99572.0,99571.0,8.90064068]
[1746693459666,0.006,99572.0,99571.0,8.88524068]
[1746693460002,0.006,99572.0,99571.0,8.90134068]
[1746693460684,0.006,99572.0,99571.0,8.88524068]
[1746693461143,0.006,99572.0,99571.0,8.90104068]
[1746693465534,0.006,99572.0,99571.0,8.88524068]
[1746693466859,0.006,99572.0,99571.0,8.91684068]
[1746693468438,0.006,99572.0,99571.0,9.0175076]
[1746693473169,0.006,99572.0,99571.0,0.7605356]
[1746693473386,0.006,99572.0,99571.0,10.0968386]
[1746693473611,0.006,99572.0,99571.0,10.1008586]
[1746693474441,0.006,99572.0,99571.0,10.0586506]
[1746693474612,0.003,99572.0,99571.0,10.0586506]
[1746693474799,0.005,99572.0,99571.0,10.0586506]
[1746693475546,0.002,99572.0,99571.0,10.0576506]
[1746693475741,0.003,99572.0,99571.0,10.0576506]
[1746693479478,0.003,99572.0,99571.0,10.03983992]
[1746693479688,0.003,99572.0,99571.0,10.05854176]
[1746693480620,0.018881,99592.0,99591.0,0.20082135]
[1746693480990,0.018881,99592.0,99591.0,9.77311105]
[1746693481189,0.018881,99592.0,99591.0,10.19181289]